Cogmind - Beta 14 @@@ ROGUE MODE // 2024.09.06 @ 22:48:13 Player: Lunace Result: Destroyed by 6W-4AC(R) with Subdweller Beam Cannon Performance ------------- Evolutions (0) 0 Regions Visited (2) 400 Robots Destroyed (41) 205 Value Destroyed (1044) 1044 Prototype IDs (2) 40 Alien Tech Used (0) 0 Bonus (0) 0 TOTAL SCORE: 1689 Bonus ------- None Cogmind --------- Core Integrity 0/250 Matter 118/300 Energy 250/250 System Corruption 0% Temperature Cool (9) Movement Treading (240) Ox1 Location -10/Subcaves Parts ------- > --- POWER (1) -------- Ion Engine > --- PROPULSION (2) --- Light Treads > --- UTILITY (2) ------ Large Storage Unit Light Armor Plating > --- WEAPON (2) ------- Subdweller Machine Gun Barrage Gun > --- INVENTORY (15) --- Ion Engine Structural Scanner Subdweller Machine Gun Grenade Launcher Grenade Launcher Multitool Piercing Trap Peak State ------------ > --- POWER ------------ Ion Engine > --- PROPULSION ------- Light Treads Wheel > --- UTILITY ---------- Scrap Shield > --- WEAPON ----------- Battle Rifle Subdweller Machine Gun > --- INVENTORY -------- Large Storage Unit Structural Scanner Light Armor Plating Grenade Launcher [Rating: 11] Favorites ----------- Power Ion Engine Engine Ion Engine Propulsion Light Treads Treads Light Treads Wheel Wheel Utility Large Storage Unit Device Structural Scanner Storage Large Storage Unit Protection Light Armor Plating Weapon EM Pulse Gun Energy Gun EM Pulse Gun Ballistic Gun Subdweller Machine Gun Launcher Grenade Launcher Build | -11 -10 -10 ------- Run | Yrd Mat Sub Slots Evolved . | . . . Power . | . . . Propulsion . | . . . Utility . | . . . Weapon . | . . . Parts Attached 52 | 8 15 29 Power 4 | 1 3 . Engine 4 | 1 3 . Core . | . . . Reactor . | . . . Propulsion 5 | 2 3 . Treads 4 | 2 2 . Leg . | . . . Wheel 1 | . 1 . Hover . | . . . Flight . | . . . Utility 23 | 2 3 18 Device 9 | 1 1 7 Storage 3 | 1 1 1 Processor . | . . . Hackware . | . . . Protection 11 | . 1 10 Artifact . | . . . Weapon 20 | 3 6 11 Energy Gun 9 | 3 5 1 Energy Cannon . | . . . Ballistic Gun 6 | . . 6 Ballistic Cannon . | . . . Launcher 5 | . 1 4 Special Weapon . | . . . Impact Weapon . | . . . Slashing Weapon . | . . . Piercing Weapon . | . . . Special Melee Weapon . | . . . Unidentified Prototypes . | . . . Parts Lost 7 | . 3 4 Power . | . . . Propulsion 2 | . 1 1 Utility 2 | . . 2 Weapon 3 | . 2 1 Highest Loss Streak 2 | . 1 2 To Critical Strikes . | . . . Average Slot Usage (%) 91 | . 96 88 Engine 13 | . 13 14 Treads 17 | . 23 14 Wheel 2 | . 1 4 Device 7 | . 4 10 Storage 13 | . 14 12 Protection 5 | . 9 3 Energy Gun 14 | . 27 5 Ballistic Gun 7 | . . 12 Launcher 6 | . . 10 Peak Build Rating 11 | 7 7 11 Average Rating 7 | 5 6 7 On Entrance 4 | . 7 7 Naked Turns . | . . . Heaviest Build 35 | 15 33 35 Greatest Support 40 | 40 40 20 Greatest Overweight (x) 3 | . 3 3 Average Overweight (x) . | . . 1 Largest Inventory Capacity 15 | 8 15 15 Average Capacity 11 | 7 8 14 Most Carried 8 | 4 8 8 Average Carried 5 | 2 6 4 Final Capacity 15 | 8 15 15 Final Carried 7 | 3 7 7 Class Distribution -------------------- 98% | Mutant Dominant Class ---------------- Mutant | -10/Materials Mutant | -10/Subcaves Resources | -11 -10 -10 ----------- Run | Yrd Mat Sub Matter Collected 919 | 280 115 524 Remotely . | . . . Salvage Created 1148 | 107 721 320 Parts 70 | 16 38 16 Haulers Intercepted 1 | . 1 . Recyclers Shooed . | . . . Parts Field Recycled . | . . . Retrieved Matter . | . . . Parts Self-Destructed 19 | . . 19 Prevented . | . . . Kills | -11 -10 -10 ------- Run | Yrd Mat Sub Combat Hostiles Destroyed 27 | . 17 10 Guns 16 | . 11 5 AOE 10 | . 5 5 Classes Destroyed 9 | 1 5 3 Builder 2 | . 2 . Tunneler 6 | 6 . . Hauler 1 | . 1 . Turret 2 | . . 2 Watcher 3 | . 3 . Swarmer 6 | . 6 . Grunt 11 | . 11 . Sentry 1 | . . 1 Subdweller 9 | . . 9 Best Kill Streak 3 | 3 3 2 Combat Bots Only 3 | . 3 2 Max Kills in Single Turn 2 | 1 2 1 Gunslinging 1 | . 1 . Exploded 2 | . 2 1 Melee . | . . . Uniques/NPCs Destroyed . | . . . Combat | -11 -10 -10 -------- Run | Yrd Mat Sub Hostile Shots Fired 155 | . 87 68 Missed 45 | . 23 22 Damage Taken 1544 | . 700 844 Core 263 | . 140 123 Absorbed by Shields . | . . . Regen/Repaired (Parts) 54 | . 54 . Core Remaining (%) 100 | 100 . . Volleys Fired 125 | 12 61 52 Largest 2 | 2 2 2 Hottest 100 | 100 100 80 Shots Fired 227 | 24 115 88 Gun 190 | 24 110 56 Cannon . | . . . Launcher 37 | . 5 32 Special . | . . . Kinetic 16 | . . 16 Thermal 74 | 24 50 . Explosive 37 | . 5 32 Electromagnetic 100 | . 60 40 Robot Hit Streak 18 | 5 10 18 Robot Miss Streak 4 | 3 4 1 Penetration Max . | . . . Secondary Targets 4 | . 3 1 Max Gunslinging Chain 1 | . 1 1 Shots Hit Robots 138 | 15 71 52 Core Hits 72 | 6 37 29 Critical Kills 1 | . . 1 Critical Parts Destroyed . | . . . Critical Strikes 7 | 1 4 2 Burn 4 | 1 3 . Destroy 1 | . . 1 Corrupt 2 | . 1 1 Melee Attacks . | . . . Impact . | . . . Slashing . | . . . Piercing . | . . . Sneak Attacks . | . . . Combat Hostiles . | . . . Follow-up Attacks . | . . . Damage Inflicted 3130 | 201 1386 1543 Guns 1664 | 201 1001 462 Cannons . | . . . Explosions 1466 | . 385 1081 Melee . | . . . Ramming . | . . . Kinetic 134 | . . 134 Thermal 876 | 201 675 . Explosive 1185 | . 104 1081 Electromagnetic 935 | . 607 328 Impact . | . . . Slashing . | . . . Piercing . | . . . Highest Corruption . | . . . Average Corruption . | . . . Corruption Purged . | . . . Corruption Blocked . | . . . Overload Shots . | . . . Overflow Damage 12 | . . 12 Projectiles . | . . . Explosions 12 | . . 12 Melee . | . . . Knockbacks . | . . . Impact . | . . . Kinetic . | . . . Secondary . | . . . Self-Inflicted Damage 39 | . . 39 Shots 2 | . . 2 Rammed . | . . . Targets Rammed . | . . . Kicked . | . . . Crushed . | . . . Highest Temperature 360 | 234 360 1 Average Temperature 89 | 75 93 1 Received Heat Transfer 498 | . 273 225 Effects 3 | . 3 . Interference 3 | . 3 . Siege Activations . | . . . Robots Corrupted 1 | . 1 . Combat Hostiles 1 | . 1 . Parts Fried 4 | . 1 3 Impact Corruptions . | . . . Robots Melted . | . . . Combat Hostiles . | . . . Parts Melted 9 | 3 6 . Heat Transferred 2435 | 666 1769 . Parts Sabotaged . | . . . Parts Stolen . | . . . Parts Stripped . | . . . Power Chain Reactions 5 | . 5 . Alert | -11 -10 -10 ------- Run | Yrd Mat Sub Peak Influence 344 | 30 344 . Initial 19 | . 19 . Average 134 | 13 157 . Maximum Alert Level 1 | . 1 . Low Security (%) 86 | 100 84 . Level 1 13 | . 15 . Level 2 . | . . . Level 3 . | . . . Level 4 . | . . . Level 5 . | . . . High Security . | . . . Max Security . | . . . Squads Dispatched 5 | . 5 . Investigation 3 | . 3 . Extermination . | . . . Reinforcement 2 | . 2 . Assault . | . . . Garrison . | . . . Intercept . | . . . Searches Triggered . | . . . Construction Impeded . | . . . Haulers Reinforced . | . . . Active Scanning Responses . | . . . Cargo Convoy Interrupts . | . . . Stealth | -11 -10 -10 --------- Run | Yrd Mat Sub Distress Signals . | . . . Communications Jammed . | . . . Distress Signals . | . . . Times Spotted 39 | . 27 12 Peak Tracking Total 3 | . 3 2 Tactical Retreats 3 | . 2 1 Traps | -11 -10 -10 ------- Run | Yrd Mat Sub Traps Triggered 5 | . 5 . Indirectly . | . . . Trap Hack Attempts . | . . . Triggered . | . . . Disarmed . | . . . Reprogrammed . | . . . Reused . | . . . Traps Extracted . | . . . Installed . | . . . Triggered 1 | . . 1 Most Traps Carried 1 | . . 1 Machines | -11 -10 -10 ---------- Run | Yrd Mat Sub Machines Disabled 6 | . 3 3 Max in Single Turn 3 | . 3 3 Machines Repaired . | . . . Machines Dismantled . | . . . Machines Sabotaged . | . . . Overloaded Fab Kills . | . . . Hacking | -11 -10 -10 --------- Run | Yrd Mat Sub Machines Accessed 7 | . 7 . Terminals 6 | . 6 . Fabricators . | . . . Repair Stations 1 | . 1 . Recycling Units . | . . . Scanalyzers . | . . . Garrison Access . | . . . Total Hacks 26 | . 26 . Successful 14 | . 14 . Failed 12 | . 12 . Catastrophic . | . . . Database Lockouts . | . . . Manual 14 | . 14 . Terminals 24 | . 24 . Fabricators . | . . . Repair Stations 2 | . 2 . Recycling Units . | . . . Scanalyzers . | . . . Garrison Access . | . . . Terminal Hacks 5 | . 5 . Prototype ID Bank 1 | . 1 . Terminal Index 1 | . 1 . Locate Traps 2 | . 2 . Zone Layout 1 | . 1 . Fabricator Hacks . | . . . Repair Station Hacks 2 | . 2 . Scan Component 1 | . 1 . Repair 1 | . 1 . Recycling Unit Hacks . | . . . Scanalyzer . | . . . Garrison Access Hacks . | . . . Unauthorized Hacks 7 | . 7 . Terminals 7 | . 7 . Botnet 2 | . 2 . Skim 5 | . 5 . Fabricators . | . . . Repair Stations . | . . . Recycling Units . | . . . Scanalyzers . | . . . Garrison Access . | . . . Data Cores Recovered . | . . . Used . | . . . Hacking Detections 6 | . 6 . Full Trace Events . | . . . Feedback Events . | . . . Feedback Blocked . | . . . Robot Schematics Acquired . | . . . Robots Built . | . . . Authchips . | . . . Time . | . . . Total Robot Build Rating . | . . . Part Schematics Acquired . | . . . Parts Built . | . . . Authchips . | . . . Time . | . . . Total Part Build Rating . | . . . Parts Repaired 1 | . 1 . Time 26 | . 26 . Parts Recycled . | . . . Recycled Matter . | . . . Retrieved Matter . | . . . Retrieved Components . | . . . Parts Scanalyzed . | . . . Part Schematics Acquired . | . . . Parts Damaged . | . . . Bothacking | -11 -10 -10 ------------ Run | Yrd Mat Sub Used RIF Installer . | . . . Robots Hacked . | . . . Non-combat . | . . . Combat . | . . . Robot Hacks Applied . | . . . Relay Couplers Released . | . . . Fabnet Peak Effective % . | . . . Robots Rewired . | . . . Allies Hacked . | . . . Hacks Repelled . | . . . Allies | -11 -10 -10 -------- Run | Yrd Mat Sub Total Allies . | . . . Largest Group . | . . . Highest-Rated Group . | . . . Highest-Rated Ally . | . . . Total Orders . | . . . Ally Attacks . | . . . Total Damage . | . . . Kills . | . . . Allies Corrupted . | . . . Allies Melted . | . . . Intel | -11 -10 -10 ------- Run | Yrd Mat Sub Robot Analysis Total . | . . . Derelict Logs Recovered . | . . . Drone Launches . | . . . Drone Recoveries . | . . . Exploration | -11 -10 -10 ------------- Run | Yrd Mat Sub Turns Passed 3264 | 239 1267 1758 Spaces Moved 1540 | 96 633 811 Core 4 | 4 . . Treads 1152 | 92 571 489 Legs . | . . . Wheels 384 | . 62 322 Hover . | . . . Flight . | . . . Fastest Speed 50 | 50 125 110 Average Speed 174 | 155 156 190 Slowest Speed 240 | 160 160 240 Overloaded Moves . | . . . Propulsion Burnouts . | . . . Robots Hopped . | . . . Cave-ins Triggered . | . . . Exploration Rate (%) 50 | 5 94 53 Regions Visited 2 Branch Regions 1 Pre-discovered Areas 1 | . . 1 Known Exits Taken 1 | . 1 . Unknown Exits Taken 1 | 1 . . Scrap Searched 3 | . . 3 Spaces Dug 8 | . . 8 Terrain Destroyed 235 | . 95 140 Melee . | . . . Projectile . | . . . AOE 235 | . 95 140 Terrain Rammed . | . . . Walls Destroyed . | . . . Machines Disabled . | . . . Actions | -11 -10 -10 --------- Run | Yrd Mat Sub Total 1884 | 158 794 932 Wait 122 | 38 64 20 Move 1538 | 95 632 811 Hop . | . . . Pick Up 22 | 4 11 7 Fast Attach 17 | 7 5 5 Attach 11 | . 4 7 Detach 5 | . 1 4 Swap 24 | 1 6 17 Drop 20 | 1 10 9 Fire 125 | 12 61 52 Melee . | . . . Ram . | . . . Kick . | . . . Crush . | . . . Escape Stasis . | . . . Rewire . | . . . Trap . | . . . Miscellaneous . | . . . Route ------- -11/Scrapyard -10/Materials (discovered 5 exits: *Mat x3 / [*Min] / *Sub) -10/Subcaves (discovered 2 exits: *Mat / [*Rec]) History --------- Turn | Location | Event 3 | -11/Scrapyard | Discovered new exit (range 15) 240 | -11/Scrapyard | Entered Materials 311 | -10/Materials | Build established: Mutant 331 | -10/Materials | Discovered new exit (range 6) 511 | -10/Materials | Discovered new exit (range 4) 603 | -10/Materials | Discovered new exit (range 17) 842 | -10/Materials | Learned 4 Subcaves zone layouts 873 | -10/Materials | Identified exit to Subcaves 873 | -10/Materials | Identified exit to Materials 896 | -10/Materials | Learned Storage interactive machine intel 909 | -10/Materials | Learned 4 Recycling zone layouts 911 | -10/Materials | Learned location of 2 exits from Materials 914 | -10/Materials | Learned 2 Mines zone layouts 917 | -10/Materials | Learned location of 1 exit from Recycling 1327 | -10/Materials | Repaired Ion Engine 1467 | -10/Materials | Core integrity fell below 50% 1507 | -10/Materials | Entered Subcaves 1508 | -10/Subcaves | Identified exit to Materials 1879 | -10/Subcaves | Ambushed by Subdwellers from Twisted Machinery 1992 | -10/Subcaves | Ambushed by Subdweller buried in earth 2023 | -10/Subcaves | Core integrity fell below 20% 2162 | -10/Subcaves | Learned location of Zion (-7) 2162 | -10/Subcaves | Met a Zionite searching for "candidates" 2394 | -10/Subcaves | A swath of the cavern ceiling suddenly collapsed 2751 | -10/Subcaves | Shifting Twisted Machinery released Piercing Trap 2756 | -10/Subcaves | Shifting Twisted Machinery released Barrage Gun 3052 | -10/Subcaves | Discovered new exit (range 16) 3265 | -10/Subcaves | Destroyed by 6W-4AC(R) with Subdweller Beam Cannon Last Messages --------------- 02913_ Acquired 7 matter. 02923_ Acquired 27 matter. 02928_ Acquired Multitool. 02929_ Dropped Multitool. 02948_ Acquired 8 matter. 02952_ Subatomizers dissect the Multitool. 02968_ Acquired 6 matter. 02972_ Subatomizers dissect the Multitool, destroying it. 02984_ Subatomizers dissect the Wheel. 02987_ Acquired 49 matter. 02992_ Acquired Ion Engine. 02994_ Subatomizers dissect the Wheel, destroying it. 03038_ Machine disabled. 03039_ The unstable cave ceiling collapses. 03052_ EXIT=FOUND 03074_ Acquired 32 matter. 03076_ The unstable cave ceiling collapses. 03256_ 6W-4AC(R): "WEHOME!" Map ----- +----------------------------------------------------+ | ???????????????????#< ##### | | ????????????????????#" % ###### | | ????????????????????#" # #### | | ????????????????????#" # ### | | ???????????????????##""" "### | | ???????????????????########### % | | ???????????????????## ####### ## ### | | ???????????????????## ##### "" #### #### | | ???????????????????## """#### ##### # | | ??????????????????### ""##### ######### | | ?????????????????### ## "##?## ####### | | ???????????????#### ###" "###?### [ #### | | ???????????????##" #### ###?#### ## | | ?????????????? " #### ####??### # | | ????????????? " " #### ####??### # | | ???????????## ### #### "######### # | | ???????????## #### ??## ""######### | | ??????????? ## ??#### """ ####### # | | ?????????????? ?##### """ ###### ## | | ?????????????? ###### ###### ## | | ?????????????? ## ## ##### #### ## | | ????????????? """ " ## ############ | | ???????????? " """ ### ######?#### | | ????????????## R " #### ####??????? | | ????????????### " #### ####?????? | | ?????????????### @ ######## ####????? | | ??????????????##### ######## ###????? | | ??????????????###### ##??#### ##????? | | ?????????????????### ##???### ##????? | | ?????????????????## ## ## ###????## ###????? | | ?????????????????## ###########????## ####????? | | ?????????????????## ? #########????#### #######?? | | ?????????????????## ???????????????#### #######?? | | ???????????????????????????????????## ## ##?? | | ???????????????????????????????????### ##?? | | ???????????????????????????????????###### ####?? | | ????????????????????????????????????############?? | | ???????????????????????????????????????#######???? | | ?????????????????????????????????????????????????? | | ?????????????????????????????????????????????????? | | ?????????????????????????????????????????????????? | | ?????????????????????????????????????????????????? | | ?????????????????????????????????????????????????? | | ?????????????????????????????????????????????????? | | ?????????????????????????????????????????????????? | | ?????????????????????????????????????????????????? | | ?????????????????????????????????????????????????? | | ?????????????????????????????????????????????????? | | ?????????????????????????????????????????????????? | | ?????????????????????????????????????????????????? | +----------------------------------------------------+ Best States ------------- Heat Dissipation 35 Energy Generation 10 Energy Capacity 250 Matter Stores 300 Matter Capacity 300 Sight Range 16 Terrain Scan Density 10 Armor Coverage 800 Evasion (%) 40 Recoil Reduction 2 Item Schematics ----------------- None Robot Schematics ------------------ None Fabricated ------------ Nothing Alien Tech Used ----------------- None Achievements -------------- None Challenges ------------ None Game ------ Seed CombatTrapSabre Manual? 0 Play Time 00:18:31 Cumulative 334.2 hours Start 2024.09.06 @ 22:26:14 End 2024.09.06 @ 22:48:13 Sessions 1 Manual Loads 0 Difficulty Rogue Special Mode None Game No. 341 Rogue 336 Adventurer 5 Explorer 0 Win Type - Total 5 Types 4/0/0/1/0/0/0/0/0 Lore% 76 Gallery% 82 Achievement% 67 Wizard Run 0 Options --------- Layout 1 ASCII 0 Keyboard 0 Movement Arrows Keybinds 0 Fullscreen 1 Font 24/Terminus Map View 50x35 Zoom Use 0% Tactical HUD 1 Map Filters NONE Filters NONE Steam 1 RUN: 93dee134-2887-4476-8cdb-96ef334e551a